bitfinex/quotes_BTCUSD_20241124
["timestamp","ask_amount","ask_price","bid_price","bid_amount"]
[1732406402410,0.24681427,97536.0,97535.0,0.0017164]
[1732406403033,0.38671267,97536.0,97535.0,0.0017164]
[1732406403284,0.24881427,97536.0,97535.0,0.0017164]
[1732406404238,0.002,97524.0,97510.0,0.07928684]
[1732406404563,0.002,97527.0,97510.0,0.07928684]
[1732406405231,0.1378984,97523.0,97510.0,0.07928684]
[1732406405440,0.31791267,97523.0,97499.0,0.15]
[1732406405663,0.1873984,97517.0,97499.0,0.15]
[1732406405866,0.1378984,97510.0,97498.0,0.04138905]
[1732406406067,0.0495,97509.0,97492.0,0.0467]
[1732406406302,0.1378984,97505.0,97490.0,0.15]
[1732406406426,0.002,97507.0,97480.0,0.07928684]
[1732406406427,0.1378984,97499.0,97480.0,0.07928684]
[1732406406670,0.1378984,97499.0,97478.0,0.0484154]
[1732406406863,0.1378984,97499.0,97480.0,0.07928684]
[1732406407898,0.1378984,97499.0,97489.0,0.07928684]
[1732406408142,0.1378984,97499.0,97481.0,0.15]
[1732406408541,0.1378984,97499.0,97481.0,0.19063712]
[1732406409795,0.13776617,97499.0,97481.0,0.19063712]
[1732406410027,0.1275,97498.0,97481.0,0.04063712]
[1732406410253,0.26526617,97498.0,97481.0,0.19063712]
[1732406410461,0.26526617,97498.0,97481.0,0.15]
[1732406411098,0.26445033,97498.0,97481.0,0.15]
[1732406412840,0.023,97497.0,97481.0,0.15]
[1732406415941,0.16076617,97495.0,97481.0,0.15]
[1732406416143,0.10201427,97504.0,97481.0,0.15]
[1732406416144,0.023,97490.0,97481.0,0.0008585]
[1732406416721,0.023,97488.0,97481.0,0.0008585]
[1732406417311,0.023,97484.0,97481.0,0.0008585]
[1732406417516,0.023,97482.0,97481.0,0.0008585]
[1732406418395,0.020681,97482.0,97481.0,0.0008585]
[1732406418602,0.018681,97482.0,97481.0,0.0008585]
[1732406430082,0.018681,97482.0,97480.0,0.03190975]
[1732406430281,0.018681,97482.0,97478.0,0.0017154]
[1732406431022,0.048,97481.0,97478.0,0.0017154]
[1732406431477,0.13776617,97480.0,97478.0,0.0017154]
[1732406433329,0.023,97479.0,97478.0,0.0017154]
[1732406434304,0.02291901,97479.0,97478.0,0.0017154]
[1732406434508,0.06961901,97479.0,97478.0,0.0017154]
[1732406437685,0.06732822,97479.0,97478.0,0.0017154]
[1732406438470,0.20509439,97479.0,97478.0,0.0017154]
[1732406438682,0.30910866,97479.0,97478.0,0.0017154]
[1732406438892,0.38900866,97479.0,97478.0,0.0017154]
[1732406440999,0.38890608,97479.0,97478.0,0.0017154]
[1732406444255,0.38690608,97479.0,97478.0,0.0017154]
[1732406449997,0.38890608,97479.0,97478.0,0.0017154]
[1732406451199,0.39062408,97479.0,97478.0,0.0017154]
[1732406457109,0.38862408,97479.0,97478.0,0.0017154]
[1732406457333,0.06894364,97479.0,97478.0,0.0017154]
[1732406457743,0.02224364,97479.0,97478.0,0.0017154]
[1732406458829,0.001718,97479.0,97478.0,0.0017154]
[1732406459733,0.001718,97479.0,97478.0,0.25475534]
[1732406460004,0.001718,97479.0,97478.0,0.25372967]
[1732406460617,0.001718,97479.0,97478.0,0.3159635]
[1732406462644,0.001718,97479.0,97478.0,0.25372967]
[1732406470608,0.001718,97479.0,97478.0,0.34327932]
[1732406472393,0.001718,97479.0,97478.0,0.25372967]
[1732406472630,0.001718,97479.0,97478.0,0.3159635]
[1732406474524,0.001718,97479.0,97478.0,0.34350071]
[1732406475363,0.001718,97479.0,97478.0,0.59100071]
[1732406476027,0.001718,97482.0,97481.0,0.21223383]
[1732406476229,0.001718,97482.0,97481.0,0.36277362]
[1732406476375,0.001718,97482.0,97481.0,0.38928531]
[1732406476584,0.0753,97516.0,97493.0,0.06223383]
[1732406476793,0.13776617,97528.0,97497.0,0.21223383]
[1732406476994,0.0753,97523.0,97497.0,0.31527355]
[1732406477166,0.0753,97523.0,97497.0,0.3142481]
[1732406479331,0.0016408,97498.0,97497.0,0.3142481]
[1732406479545,0.00162084,97498.0,97497.0,0.3142481]
[1732406480897,0.00162084,97498.0,97497.0,0.35606336]
[1732406482424,0.00088905,97498.0,97497.0,0.29382953]
[1732406483816,0.00078232,97498.0,97497.0,0.29382953]
[1732406484879,0.00078232,97498.0,97497.0,0.19181526]
[1732406493280,0.00078232,97498.0,97497.0,0.19431526]
[1732406496965,0.00042632,97498.0,97497.0,0.19431526]
[1732406497193,0.00040808,97498.0,97497.0,0.35958893]
[1732406497442,0.00040808,97498.0,97497.0,0.38610057]
[1732406498910,0.0757,97524.0,97511.0,0.06223383]
[1732406499144,0.0757,97524.0,97514.0,0.12084326]
[1732406499383,0.0757,97524.0,97516.0,0.15]
[1732406499620,0.0757,97524.0,97517.0,0.10303961]
[1732406501255,0.07313583,97524.0,97517.0,0.10303961]
[1732406502866,0.07313583,97524.0,97516.0,0.01324475]
[1732406503088,0.07313583,97524.0,97514.0,0.12084326]
[1732406503323,0.07313583,97524.0,97515.0,0.00102534]
[1732406504218,0.07313583,97524.0,97515.0,0.10303961]
[1732406504469,0.07313583,97524.0,97516.0,0.19178531]
[1732406504689,0.0465,97525.0,97517.0,0.06325914]
[1732406504919,0.0757,97531.0,97518.0,0.15]
[1732406505151,0.0757,97531.0,97521.0,0.12084326]
[1732406505372,0.0757,97531.0,97522.0,0.00102526]
[1732406505600,0.0757,97531.0,97523.0,0.00102527]
[1732406505918,0.0757,97531.0,97522.0,0.15102526]
[1732406508653,0.0757,97531.0,97521.0,0.07316399]
[1732406508896,0.0757,97531.0,97521.0,0.12084326]
[1732406509369,0.0757,97531.0,97521.0,0.16182744]
[1732406509833,0.0774168,97531.0,97521.0,0.16182744]
[1732406514806,0.0774168,97531.0,97521.0,0.120229]
[1732406515265,0.07076458,97531.0,97521.0,0.120229]
[1732406515495,0.06415769,97531.0,97521.0,0.120229]
[1732406515723,0.06362268,97531.0,97521.0,0.120229]
[1732406516618,0.06227852,97531.0,97522.0,0.15]
[1732406521056,0.06227852,97531.0,97525.0,0.06223383]
[1732406521347,0.06227852,97531.0,97529.0,0.06223383]
[1732406521348,0.0017168,97531.0,97529.0,0.06223383]
[1732406521553,0.0017168,97531.0,97530.0,0.25201427]
[1732406521989,0.0017168,97531.0,97530.0,0.34178531]
[1732406523534,0.0008585,97538.0,97536.0,0.06223383]
[1732406523744,0.0008585,97538.0,97537.0,0.10201427]
[1732406523988,0.0008585,97538.0,97537.0,0.65796225]
[1732406524231,0.0008585,97538.0,97537.0,0.25201427]
[1732406526091,0.0008585,97538.0,97537.0,0.29273534]
[1732406531716,0.0008585,97538.0,97537.0,0.04072107]
[1732406531966,0.1260585,97538.0,97537.0,0.04072107]
[1732406532191,0.1260585,97538.0,97529.0,0.21223383]
[1732406532422,0.1260585,97538.0,97531.0,0.15]
[1732406532653,0.1260585,97538.0,97531.0,0.25201427]
[1732406532882,0.0800585,97538.0,97531.0,0.25201427]
[1732406533115,0.0485,97537.0,97531.0,0.25201427]
[1732406533342,0.0485,97537.0,97536.0,0.27467053]
[1732406533563,0.0485,97537.0,97536.0,0.42467053]
[1732406534643,0.0485,97537.0,97532.0,0.15]
[1732406534848,0.0485,97537.0,97536.0,0.42471821]
[1732406535072,0.0485,97537.0,97536.0,0.15]
[1732406535981,0.0485,97537.0,97532.0,0.15]
[1732406538291,0.0485,97537.0,97532.0,0.55582772]
[1732406538477,0.0485,97537.0,97534.0,0.15]
[1732406539409,0.0485,97537.0,97536.0,0.55590272]
[1732406539636,0.0485,97537.0,97536.0,0.15]
[1732406539872,0.13776617,97560.0,97536.0,0.15]
[1732406539873,0.00213936,97559.0,97537.0,0.2742]
[1732406540077,0.00213936,97559.0,97548.0,0.06223383]
[1732406540078,0.0008579,97559.0,97548.0,0.06223383]
[1732406540288,0.0008579,97559.0,97548.0,0.3142481]
[1732406540520,0.0008579,97559.0,97548.0,0.34196763]
[1732406542261,0.00022404,97549.0,97548.0,0.34196763]
[1732406544031,0.00022404,97549.0,97548.0,0.38358093]
[1732406544719,0.0008579,97559.0,97558.0,0.13943383]
[1732406544947,0.0008579,97577.0,97561.0,0.06223383]
[1732406544948,0.00537148,97562.0,97561.0,0.06223383]
[1732406545152,0.00537148,97562.0,97561.0,0.3142481]
[1732406545362,0.00537148,97562.0,97561.0,0.34196763]
[1732406545572,0.00537148,97562.0,97561.0,0.74726207]
[1732406545971,0.0008579,97577.0,97576.0,0.06223383]
[1732406546239,0.0008579,97577.0,97576.0,0.3142481]
[1732406546444,0.0008579,97577.0,97576.0,0.34196763]
[1732406549152,0.0008579,97577.0,97576.0,0.38422011]
[1732406551206,0.0003579,97577.0,97576.0,0.38386077]
[1732406552073,0.0003579,97577.0,97576.0,0.17198628]
[1732406552651,0.0003579,97577.0,97576.0,0.20103841]
[1732406554550,0.0003397,97577.0,97576.0,0.35103841]
[1732406559069,0.0003397,97577.0,97576.0,0.35275381]
[1732406560469,0.0003397,97577.0,97576.0,0.35325381]
[1732406564331,0.0003397,97577.0,97576.0,0.29648215]
[1732406568039,0.0003397,97577.0,97576.0,0.04446788]
[1732406569748,0.04958127,97579.0,97576.0,0.04446788]
[1732406569962,0.0067207,97577.0,97576.0,0.04446788]
[1732406570193,0.04958127,97579.0,97576.0,0.04446788]
[1732406570451,0.00553418,97577.0,97576.0,0.04446788]
[1732406570670,0.0841577,97577.0,97576.0,0.04446788]
[1732406571124,0.08883002,97577.0,97576.0,0.04446788]
[1732406572292,0.08833002,97577.0,97576.0,0.04446788]
[1732406572952,0.13513002,97577.0,97576.0,0.04446788]
[1732406573153,0.13507583,97577.0,97576.0,0.04446788]
[1732406577547,0.13497583,97577.0,97576.0,0.04446788]
[1732406580937,0.15797583,97577.0,97576.0,0.04446788]
[1732406581627,0.15708932,97577.0,97576.0,0.04446788]
[1732406581874,0.15698932,97577.0,97576.0,0.04446788]
[1732406582083,0.15827038,97577.0,97576.0,0.04446788]
[1732406582551,0.023,97575.0,97567.0,0.07912855]
[1732406582761,0.023,97573.0,97567.0,0.07912855]
[1732406583027,0.023,97571.0,97560.0,0.17825864]
[1732406583258,0.023,97569.0,97560.0,0.17825864]
[1732406583717,0.00464639,97568.0,97560.0,0.17825864]
[1732406584841,0.0774,97567.0,97560.0,0.17825864]
[1732406585278,0.00464637,97566.0,97560.0,0.17825864]
[1732406586970,0.00464637,97566.0,97560.0,0.14857583]
[1732406587180,0.00454637,97566.0,97560.0,0.14857583]
[1732406587402,0.00454637,97566.0,97560.0,0.12138047]
[1732406589243,0.00454637,97566.0,97565.0,0.27508781]
[1732406589456,0.0774,97567.0,97565.0,0.27508781]
[1732406590853,0.0774,97567.0,97562.0,0.27508781]
[1732406591081,0.0774,97567.0,97561.0,0.27508781]
[1732406591303,0.0774,97567.0,97562.0,0.15]
[1732406591515,0.0772,97567.0,97562.0,0.15]
[1732406591739,0.0772,97567.0,97563.0,0.27508781]
[1732406592397,0.0772,97567.0,97562.0,0.42508781]
[1732406592636,0.0772,97567.0,97565.0,0.15]
[1732406592864,0.0772,97567.0,97565.0,0.55613625]
[1732406593105,0.0772,97567.0,97565.0,0.15]
[1732406594083,0.0772,97567.0,97564.0,0.15]
[1732406595250,0.0772,97567.0,97565.0,0.15]
[1732406595499,0.0499,97566.0,97565.0,0.15]
[1732406596392,0.0499,97566.0,97562.0,0.55614698]
[1732406596606,0.0499,97566.0,97561.0,0.15]
[1732406597516,0.0499,97566.0,97561.0,0.55614698]
[1732406598708,0.0499,97566.0,97563.0,0.15]
[1732406600993,0.0499,97566.0,97560.0,0.39818974]
[1732406601243,0.0499,97566.0,97562.0,0.02719536]
[1732406601923,0.00460445,97565.0,97560.0,0.04396752]
[1732406603615,0.0499,97566.0,97560.0,0.04396752]
[1732406604297,0.0499,97566.0,97565.0,0.27515432]
[1732406604732,0.0499,97566.0,97560.0,0.04396752]
[1732406605436,0.0008578,97571.0,97561.0,0.02785106]
[1732406605679,0.0008578,97571.0,97561.0,0.18610816]
[1732406605898,0.00460688,97570.0,97562.0,0.15]
[1732406608696,0.0008578,97571.0,97562.0,0.15]
[1732406610489,0.0008578,97571.0,97562.0,0.1517172]
[1732406612505,0.00460663,97570.0,97562.0,0.1517172]
[1732406612711,0.0008578,97571.0,97562.0,0.1517172]
[1732406618337,0.0493,97570.0,97562.0,0.0017172]
[1732406620594,0.0493,97568.0,97562.0,0.0017172]
[1732406621316,0.0751,97569.0,97562.0,0.0017172]
[1732406621317,0.0493,97566.0,97562.0,0.0017172]
[1732406621527,0.0493,97564.0,97562.0,0.0017172]
[1732406621753,0.0751,97563.0,97562.0,0.0017172]
[1732406621995,0.12893924,97563.0,97562.0,0.0017172]
[1732406622451,0.15184024,97563.0,97562.0,0.0017172]
[1732406623349,0.34957548,97563.0,97562.0,0.0017172]
[1732406623558,0.34739582,97563.0,97562.0,0.0017172]
[1732406624519,0.44889053,97563.0,97562.0,0.0017172]
[1732406625848,0.45089053,97563.0,97562.0,0.0017172]
[1732406626275,0.44635129,97563.0,97562.0,0.0017172]
[1732406626997,0.44118891,97563.0,97562.0,0.0017172]
[1732406630242,0.44318891,97563.0,97562.0,0.0017172]
[1732406630919,0.44118891,97563.0,97562.0,0.0017172]
[1732406632568,0.44318891,97563.0,97562.0,0.0017172]
[1732406632816,0.44118891,97563.0,97562.0,0.0017172]
[1732406633643,0.44318891,97563.0,97562.0,0.0017172]
[1732406633880,0.44118891,97563.0,97562.0,0.0017172]
[1732406634371,0.44204751,97563.0,97562.0,0.0017172]
[1732406637340,0.023,97562.0,97554.0,0.11308942]
[1732406637542,0.00128132,97561.0,97554.0,0.04184433]
[1732406637771,0.00128132,97561.0,97529.0,0.0017162]
[1732406637772,0.023,97559.0,97529.0,0.0017162]
[1732406638062,0.00128132,97558.0,97529.0,0.0017162]
[1732406638266,0.00128132,97558.0,97548.0,0.07912855]
[1732406639577,0.0497,97557.0,97548.0,0.07912855]
[1732406639800,0.023,97556.0,97548.0,0.07912855]
[1732406642044,0.023,97554.0,97548.0,0.07912855]
[1732406642462,0.023,97554.0,97541.0,0.15]
[1732406643963,0.0475,97553.0,97541.0,0.15]
[1732406646979,0.0475,97553.0,97541.0,0.1517174]
[1732406649142,0.023,97552.0,97541.0,0.1517174]
[1732406649357,0.2,97548.0,97541.0,0.0017174]
[1732406649624,0.0475,97546.0,97541.0,0.0017174]
[1732406649839,0.0475,97544.0,97541.0,0.0017174]
[1732406650314,0.2475,97544.0,97541.0,0.0017174]
[1732406650514,0.002,97547.0,97541.0,0.0017174]
[1732406650515,0.2,97542.0,97541.0,0.0017174]
[1732406650724,0.42601427,97542.0,97541.0,0.0017174]
[1732406650929,0.42801427,97542.0,97541.0,0.0017174]
[1732406651367,0.45101427,97542.0,97541.0,0.0017174]
[1732406661094,0.45101427,97542.0,97541.0,0.0016174]
[1732406663594,0.44901427,97542.0,97541.0,0.0016174]
[1732406663821,0.42601427,97542.0,97541.0,0.0016174]
[1732406665394,0.44901427,97542.0,97541.0,0.0016174]
[1732406666958,0.44901427,97542.0,97537.0,0.0005]
[1732406666959,0.03969491,97538.0,97537.0,0.0005]
[1732406669238,0.03969491,97538.0,97537.0,0.04289807]
[1732406669696,0.03969491,97538.0,97537.0,0.0005]
[1732406670575,0.03969491,97538.0,97537.0,0.0022174]
[1732406678127,0.01669491,97538.0,97537.0,0.0022174]
[1732406683317,0.01755381,97538.0,97537.0,0.0022174]
[1732406688787,0.24055381,97538.0,97537.0,0.0022174]
[1732406689020,0.36685381,97538.0,97537.0,0.0022174]
[1732406689985,0.36485381,97538.0,97537.0,0.0022174]
[1732406690214,0.36685381,97538.0,97537.0,0.0022174]
[1732406691175,0.46886808,97538.0,97537.0,0.0022174]
[1732406692074,0.46686808,97538.0,97537.0,0.0022174]
[1732406692316,0.46886808,97538.0,97537.0,0.0022174]
[1732406695095,0.46686808,97538.0,97537.0,0.0022174]
[1732406696942,0.28755381,97538.0,97537.0,0.0022174]
[1732406697200,0.24055381,97538.0,97537.0,0.0022174]
[1732406709568,0.04055381,97538.0,97537.0,0.0022174]
[1732406709800,0.01755381,97538.0,97537.0,0.0022174]
[1732406711931,0.01755381,97538.0,97532.0,0.04350405]
[1732406715201,0.01755381,97538.0,97528.0,0.07912855]
[1732406715687,0.00128156,97544.0,97529.0,0.14831427]
[1732406715909,0.0008587,97550.0,97535.0,0.0463]
[1732406716123,0.0008587,97550.0,97540.0,0.23738565]
[1732406716352,0.0008587,97550.0,97541.0,0.45991427]
[1732406717460,0.0008587,97550.0,97542.0,0.15]
[1732406717707,0.0008587,97550.0,97543.0,0.10201427]
[1732406717919,0.0008587,97550.0,97544.0,0.15]
[1732406718130,0.0008587,97550.0,97546.0,0.15]
[1732406718355,0.0008587,97550.0,97548.0,0.1963]
[1732406719492,0.0008587,97550.0,97549.0,0.25201427]
[1732406721098,0.0008587,97556.0,97550.0,0.1782245]
[1732406721307,0.0008587,97556.0,97552.0,0.15]
[1732406721576,0.0008587,97556.0,97553.0,0.13023877]
[1732406721819,0.0008587,97556.0,97554.0,0.15]
[1732406722051,0.0008587,97556.0,97555.0,0.28023877]
[1732406722741,0.0008578,97571.0,97556.0,0.15]
[1732406722972,0.0008578,97571.0,97558.0,0.15]
[1732406723213,0.0008578,97571.0,97560.0,0.15]
[1732406723438,0.0008578,97571.0,97562.0,0.15]
[1732406723677,0.0008578,97571.0,97562.0,0.28023877]
[1732406730106,0.0008578,97571.0,97563.0,0.0282245]
[1732406730316,0.0008578,97571.0,97564.0,0.10201427]
[1732406730530,0.0008578,97571.0,97565.0,0.15]
[1732406730740,0.0008578,97571.0,97566.0,0.10201427]
[1732406730976,0.0008578,97571.0,97567.0,0.15]
[1732406731222,0.0008578,97571.0,97568.0,0.10201427]
[1732406731440,0.0008578,97571.0,97569.0,0.15]
[1732406731667,0.0008578,97571.0,97570.0,0.25201427]
[1732406733041,0.00077511,97571.0,97570.0,0.25201427]
[1732406733703,0.00077511,97571.0,97570.0,0.29356072]
[1732406740093,0.00077511,97571.0,97570.0,0.32178522]
[1732406743745,0.00077511,97571.0,97570.0,0.32350242]
[1732406751586,0.047,97590.0,97571.0,0.1782245]
[1732406751796,0.047,97590.0,97572.0,0.10201427]
[1732406752009,0.047,97590.0,97573.0,0.15]
[1732406752243,0.047,97590.0,97574.0,0.10201427]
[1732406752513,0.047,97590.0,97575.0,0.15]
[1732406752752,0.047,97590.0,97575.0,0.25201427]
[1732406752965,0.047,97590.0,97577.0,0.15]
[1732406753176,0.047,97590.0,97577.0,0.25201427]
[1732406753397,0.047,97590.0,97578.0,0.10201427]
[1732406753629,0.047,97590.0,97579.0,0.15]
[1732406753901,0.047,97590.0,97579.0,0.28023877]
[1732406757592,0.0753,97592.0,97579.0,0.28023877]
[1732406758060,0.0753,97592.0,97582.0,0.07912855]
[1732406758303,0.0753,97592.0,97583.0,0.45991427]
[1732406758551,0.0753,97592.0,97584.0,0.15]
[1732406758771,0.0008577,97594.0,97585.0,0.10201427]
[1732406759004,0.0008577,97594.0,97586.0,0.15]
[1732406759230,0.0008577,97594.0,97588.0,0.15]
[1732406759445,0.0008577,97594.0,97590.0,0.15]
[1732406761970,0.0008577,97594.0,97593.0,0.15]
[1732406762378,0.0008577,97594.0,97593.0,0.42429566]
[1732406762379,0.00629349,97594.0,97593.0,0.42429566]
[1732406762605,0.0008577,97594.0,97593.0,0.15]
[1732406762810,0.00629349,97594.0,97593.0,0.15]
[1732406762998,0.0008577,97594.0,97590.0,0.15]
[1732406763212,0.00629349,97594.0,97591.0,0.10201427]
[1732406763441,0.0008577,97594.0,97592.0,0.15]
[1732406763655,0.0008577,97594.0,97592.0,0.25201427]
[1732406766677,0.0008577,97594.0,97592.0,0.65560281]
[1732406767774,0.0008577,97594.0,97593.0,0.15]
[1732406768358,0.00629868,97594.0,97593.0,0.15]
[1732406768456,0.0008577,97594.0,97593.0,0.15]
[1732406768679,0.00629868,97594.0,97593.0,0.15]
[1732406770018,0.00629868,97594.0,97589.0,0.04066644]
[1732406770240,0.128,97593.0,97589.0,0.04066644]
[1732406770481,0.04651,97590.0,97584.0,0.22912855]
[1732406770699,0.04648686,97590.0,97584.0,0.22912855]
[1732406770943,0.00543567,97589.0,97584.0,0.22912855]
[1732406771160,0.04648686,97590.0,97584.0,0.15]
[1732406775529,0.0499,97588.0,97584.0,0.15]
[1732406775757,0.0499,97586.0,97584.0,0.15]
[1732406776010,0.1313,97585.0,97584.0,0.15]
[1732406776515,0.13673448,97585.0,97584.0,0.15]
[1732406779041,0.1313,97584.0,97583.0,0.04046627]
[1732406779260,0.13258099,97584.0,97583.0,0.04046627]
[1732406779502,0.13258099,97584.0,97580.0,0.0017172]
[1732406779503,0.1313,97583.0,97580.0,0.0017172]
[1732406779730,0.1313,97581.0,97580.0,0.0017172]
[1732406779940,0.13681104,97581.0,97580.0,0.0017172]
[1732406780648,0.35981104,97581.0,97580.0,0.0017172]
[1732406780865,0.36181104,97581.0,97580.0,0.0017172]
[1732406783192,0.35981104,97581.0,97580.0,0.0017172]
[1732406783451,0.36181104,97581.0,97580.0,0.0017172]
[1732406786434,0.13681104,97581.0,97580.0,0.0017172]
[1732406788226,0.13874113,97581.0,97580.0,0.0017172]
[1732406791875,0.36302215,97581.0,97580.0,0.04356462]
[1732406792099,0.36174113,97581.0,97580.0,0.04356462]
[1732406792330,0.36174113,97581.0,97580.0,0.0017172]
[1732406792787,0.3543,97581.0,97580.0,0.0017172]
[1732406793230,0.3617605,97581.0,97580.0,0.0017172]
[1732406794864,0.46377477,97581.0,97580.0,0.0017172]
[1732406795080,0.46577477,97581.0,97580.0,0.0017172]
[1732406795583,0.46377477,97581.0,97580.0,0.0017172]
[1732406795813,0.46577477,97581.0,97580.0,0.0017172]
[1732406798339,0.46577477,97581.0,97570.0,0.0017172]
[1732406798340,0.2,97571.0,97570.0,0.0017172]
[1732406798570,0.45723888,97571.0,97570.0,0.0017172]
[1732406798808,0.45595752,97571.0,97570.0,0.0017172]
[1732406805050,0.45379517,97571.0,97570.0,0.0017172]
[1732406809106,0.43079517,97571.0,97570.0,0.0017172]
[1732406809314,0.42879517,97571.0,97570.0,0.0017172]
[1732406809738,0.3267809,97571.0,97570.0,0.0017172]
[1732406810813,0.3497809,97571.0,97570.0,0.0017172]
[1732406811000,0.1497809,97571.0,97570.0,0.0017172]
[1732406811212,0.2052809,97571.0,97570.0,0.0017172]
[1732406811876,0.2052809,97571.0,97570.0,0.04377917]
[1732406812083,0.2052809,97571.0,97570.0,0.0017172]
[1732406816518,0.2052809,97571.0,97570.0,0.04379184]
[1732406816759,0.2,97571.0,97570.0,0.04379184]
[1732406816967,0.20531139,97571.0,97570.0,0.04379184]
[1732406820344,0.20531139,97571.0,97570.0,0.31786757]
[1732406821270,0.00531139,97571.0,97570.0,0.19379184]
[1732406821693,0.2,97577.0,97571.0,0.15]
[1732406822117,0.2,97577.0,97571.0,0.55468995]
[1732406822370,0.2,97577.0,97571.0,0.15]
[1732406823086,0.2,97577.0,97570.0,0.19379184]
[1732406823316,0.2,97577.0,97570.0,0.59848179]
[1732406823545,0.2,97577.0,97570.0,0.19379184]
[1732406823768,0.2,97577.0,97571.0,0.15]
[1732406826650,0.2,97577.0,97570.0,0.44848179]
[1732406826651,0.2,97577.0,97570.0,0.44880063]
[1732406826857,0.2,97577.0,97571.0,0.15]
[1732406827777,0.2,97577.0,97569.0,0.27429034]
[1732406827990,0.00531786,97576.0,97569.0,0.27429034]
[1732406828204,0.00531786,97576.0,97568.0,0.27429034]
[1732406828690,0.2,97575.0,97567.0,0.39493292]
[1732406828949,0.2,97568.0,97567.0,0.04147499]
[1732406829186,0.3266,97568.0,97567.0,0.04147499]
[1732406829427,0.3266,97568.0,97549.0,0.7523]
[1732406829428,0.331256,97568.0,97561.0,0.27429034]
[1732406829646,0.0012812,97567.0,97558.0,0.07916759]
[1732406830392,0.0012812,97567.0,97560.0,0.12014444]
[1732406830635,0.00465599,97566.0,97560.0,0.04097685]
[1732406831112,0.00465599,97566.0,97557.0,0.12068049]
[1732406831356,0.00465599,97566.0,97558.0,0.15]
[1732406832451,0.2,97562.0,97557.0,0.04076398]
[1732406832702,0.00128127,97561.0,97557.0,0.04076398]
[1732406832912,0.00593725,97561.0,97553.0,0.15]
[1732406833126,0.00465598,97561.0,97552.0,0.15]
[1732406833349,0.2,97562.0,97552.0,0.15]
[1732406833587,0.2,97556.0,97552.0,0.15]
[1732406833807,0.12818127,97561.0,97552.0,0.15]
[1732406833808,0.20593732,97555.0,97552.0,0.19242874]
[1732406834031,0.20593732,97555.0,97552.0,0.04242874]
[1732406834551,0.2,97547.0,97541.0,0.27429034]
[1732406834779,0.2,97547.0,97545.0,0.04168977]
[1732406835011,0.2,97547.0,97539.0,0.27429034]
[1732406835314,0.2,97547.0,97540.0,0.04130783]
[1732406835534,0.2,97547.0,97538.0,0.31666002]
[1732406835750,0.079,97546.0,97539.0,0.15]
[1732406836411,0.00464027,97545.0,97539.0,0.15]
[1732406836619,0.00464027,97545.0,97538.0,0.19236968]
[1732406837821,0.00464027,97545.0,97539.0,0.40510984]
[1732406838070,0.00464027,97545.0,97540.0,0.15]
[1732406838563,0.279,97546.0,97540.0,0.15]
[1732406838788,0.00370508,97544.0,97540.0,0.15]
[1732406839019,0.00370508,97543.0,97540.0,0.15]
[1732406839260,0.00370508,97543.0,97539.0,0.55510984]
[1732406839498,0.279,97546.0,97539.0,0.55510984]
[1732406839729,0.00370508,97542.0,97539.0,0.55510984]
[1732406839964,0.279,97546.0,97539.0,0.15]
[1732406840197,0.00369784,97541.0,97539.0,0.15]
[1732406840446,0.279,97546.0,97539.0,0.15]
[1732406840942,0.2,97542.0,97539.0,0.15]
[1732406841403,0.2,97542.0,97538.0,0.44759558]
[1732406841404,0.00369784,97541.0,97538.0,0.44759558]
[1732406841629,0.00369784,97541.0,97539.0,0.15]
[1732406842128,0.2,97542.0,97539.0,0.15]
[1732406842351,0.2,97547.0,97539.0,0.15]
[1732406842577,0.2,97547.0,97539.0,0.5552259]
[1732406842797,0.20369804,97546.0,97541.0,0.15]
[1732406843048,0.00369804,97545.0,97541.0,0.15]
[1732406843482,0.2,97547.0,97541.0,0.15]
[1732406843691,0.00369803,97544.0,97541.0,0.15]
[1732406843895,0.2,97547.0,97541.0,0.15]
[1732406844111,0.00369803,97543.0,97541.0,0.15]
[1732406844323,0.2,97547.0,97541.0,0.15]
[1732406844558,0.00369971,97542.0,97541.0,0.15]
[1732406845200,0.00369971,97542.0,97540.0,0.4052259]
[1732406845201,0.00369971,97542.0,97538.0,0.04236968]
[1732406845457,0.0036997,97541.0,97538.0,0.04236968]
[1732406845916,0.2,97547.0,97538.0,0.04236968]
[1732406846122,0.2,97547.0,97544.0,0.15]
[1732406846334,0.00370024,97546.0,97545.0,0.15]
[1732406846774,0.2,97547.0,97545.0,0.15]
[1732406847190,0.00370024,97546.0,97545.0,0.15]
[1732406847395,0.00370024,97546.0,97542.0,0.40509206]
[1732406847607,0.00370024,97546.0,97543.0,0.15]
[1732406847812,0.2,97547.0,97543.0,0.15]
[1732406848038,0.00370007,97546.0,97543.0,0.15]
[1732406848457,0.2,97547.0,97543.0,0.15]
[1732406848890,0.2,97547.0,97542.0,0.15]
[1732406849134,0.00369948,97546.0,97542.0,0.15]
[1732406849353,0.1269,97540.0,97539.0,0.15]
[1732406849847,0.1306007,97540.0,97538.0,0.19236968]
[1732406850311,0.1306007,97540.0,97538.0,0.04236968]
[1732406856949,0.1269,97540.0,97538.0,0.04236968]
[1732406857639,0.00369869,97539.0,97538.0,0.04236968]
[1732406869217,0.00369938,97539.0,97538.0,0.04236968]
[1732406870972,0.0036274,97539.0,97538.0,0.04236968]
[1732406871186,0.0036274,97539.0,97538.0,0.59712772]
[1732406871624,0.0036274,97539.0,97538.0,0.19236968]
[1732406872312,0.0036274,97539.0,97538.0,0.04236968]
[1732406878517,0.1269,97540.0,97538.0,0.04236968]
[1732406878713,0.00379558,97539.0,97538.0,0.04236968]
[1732406881858,0.2,97546.0,97538.0,0.19236968]
[1732406882301,0.00379791,97545.0,97538.0,0.19236968]
[1732406882740,0.023,97545.0,97538.0,0.19236968]
[1732406882961,0.023,97543.0,97538.0,0.04236968]
[1732406883421,0.00358794,97542.0,97538.0,0.04236968]
[1732406883635,0.023,97541.0,97538.0,0.04236968]
[1732406884148,0.023,97539.0,97538.0,0.04236968]
[1732406884383,0.023,97539.0,97538.0,0.0696516]
[1732406885256,0.023,97539.0,97538.0,0.19236968]
[1732406885517,0.023,97552.0,97539.0,0.15]
[1732406885778,0.023,97552.0,97540.0,0.07923385]
[1732406886004,0.0484,97560.0,97542.0,0.07923385]
[1732406886219,0.0781,97562.0,97550.0,0.1584677]
[1732406886431,0.0781,97562.0,97551.0,0.15]
[1732406886882,0.0484,97566.0,97551.0,0.17760092]